[Event "Live Chess"]
[Site "Chess.com"]
[Date "2023.05.21"]
[Round "-"]
[White "Ian-Morley"]
[Black "LiamBellwood"]
[Result "0-1"]
[WhiteElo "1050"]
[BlackElo "1923"]
[TimeControl "300"]
[EndTime "5:49:17 PDT"]
[Termination "LiamBellwood won by resignation"]

1. e4 {[%clk 0:04:59]} 1... e6 {[%clk 0:04:59.9]} 2. d4 {[%clk 0:04:57.3]} 2...
d5 {[%clk 0:04:59.8]} 3. exd5 {[%clk 0:04:55.9]} 3... exd5 {[%clk 0:04:59.7]} 4.
Nd2 {[%clk 0:04:54.4]} 4... Bd6 {[%clk 0:04:59.4]} 5. Qe2+ {[%clk 0:04:53.1]}
5... Ne7 {[%clk 0:04:59.3]} 6. Qb5+ {[%clk 0:04:51.8]} 6... c6 {[%clk
0:04:58.1]} 7. Qe2 {[%clk 0:04:46.5]} 7... O-O {[%clk 0:04:57.8]} 8. Ngf3 {[%clk
0:04:44.5]} 8... Nf5 {[%clk 0:04:56.7]} 9. Qd3 {[%clk 0:04:35.8]} 9... Re8+
{[%clk 0:04:53.8]} 10. Be2 {[%clk 0:04:34.6]} 10... Na6 {[%clk 0:04:53.7]} 11.
a3 {[%clk 0:04:32.2]} 11... Nc7 {[%clk 0:04:53.1]} 12. g4 {[%clk 0:04:30.5]}
12... Nh4 {[%clk 0:04:50.1]} 13. Nxh4 {[%clk 0:04:29]} 13... Qxh4 {[%clk
0:04:50]} 14. h3 {[%clk 0:04:15.4]} 14... Bxg4 {[%clk 0:04:44.3]} 15. Nf3 {[%clk
0:04:05.6]} 15... Bxf3 {[%clk 0:04:40.2]} 16. Qxf3 {[%clk 0:04:04.3]} 16... Ne6
{[%clk 0:04:24.2]} 17. Be3 {[%clk 0:03:53.9]} 17... Nxd4 {[%clk 0:04:19.3]} 18.
Bxd4 {[%clk 0:03:51.5]} 18... Qxd4 {[%clk 0:04:18.5]} 19. c3 {[%clk 0:03:41.3]}
19... Qe4 {[%clk 0:04:13.8]} 20. Qxe4 {[%clk 0:03:40]} 20... Rxe4 {[%clk
0:04:13.7]} 21. f3 {[%clk 0:03:27.4]} 21... Bg3+ {[%clk 0:04:12.1]} 22. Kd2
{[%clk 0:03:24.7]} 22... Bf4+ {[%clk 0:04:08.9]} 23. Ke1 {[%clk 0:03:20.7]}
23... Re6 {[%clk 0:04:04.9]} 24. Kf2 {[%clk 0:03:17.1]} 24... Rae8 {[%clk
0:03:58.8]} 25. Bd3 {[%clk 0:03:01.3]} 25... Be3+ {[%clk 0:03:58.1]} 26. Kg2
{[%clk 0:02:56.8]} 26... g6 {[%clk 0:03:58]} 27. Rhe1 {[%clk 0:02:53.7]} 27...
Bd2 {[%clk 0:03:56.6]} 28. Rxe6 {[%clk 0:02:50.7]} 28... Rxe6 {[%clk 0:03:56.5]}
29. a4 {[%clk 0:02:44.9]} 29... c5 {[%clk 0:03:54.4]} 30. c4 {[%clk 0:02:32.7]}
30... dxc4 {[%clk 0:03:52.6]} 31. Bxc4 {[%clk 0:02:31.8]} 31... Rd6 {[%clk
0:03:45.9]} 32. b3 {[%clk 0:02:27.6]} 32... Bf4 {[%clk 0:03:42.5]} 33. h4 {[%clk
0:02:15.7]} 33... Rd2+ {[%clk 0:03:38.9]} 34. Kh3 {[%clk 0:02:14.8]} 34... h5
{[%clk 0:03:37.7]} 35. Rh1 {[%clk 0:02:12.6]} 35... Kg7 {[%clk 0:03:31.8]} 36.
a5 {[%clk 0:02:05.2]} 36... Rf2 {[%clk 0:03:29.5]} 37. Bd5 {[%clk 0:02:01.8]}
37... b6 {[%clk 0:03:28.9]} 38. axb6 {[%clk 0:02:00.8]} 38... axb6 {[%clk
0:03:28.8]} 39. Be4 {[%clk 0:01:58.7]} 39... b5 {[%clk 0:03:24.5]} 40. Bd5
{[%clk 0:01:44.8]} 40... Rd2 {[%clk 0:03:21.3]} 41. Be4 {[%clk 0:01:37]} 41...
c4 {[%clk 0:03:20.8]} 42. bxc4 {[%clk 0:01:36]} 42... bxc4 {[%clk 0:03:20.7]}
43. Bd5 {[%clk 0:01:34.8]} 43... Rxd5 {[%clk 0:03:18.5]} 44. Kg2 {[%clk
0:01:34.1]} 44... Rd2+ {[%clk 0:03:17.2]} 45. Kg1 {[%clk 0:01:32]} 45... c3
{[%clk 0:03:17.1]} 0-1

[Event "Live Chess"]
[Site "Chess.com"]
[Date "2023.05.21"]
[Round "-"]
[White "diana21strabt"]
[Black "stevochess11"]
[Result "1-0"]
[WhiteElo "1759"]
[BlackElo "1715"]
[TimeControl "300"]
[EndTime "5:49:23 PDT"]
[Termination "diana21strabt won by resignation"]

1. e4 {[%clk 0:04:58.6]} 1... c5 {[%clk 0:04:59.1]} 2. Nf3 {[%clk 0:04:57.3]}
2... g6 {[%clk 0:04:57.9]} 3. d4 {[%clk 0:04:56]} 3... cxd4 {[%clk 0:04:57]} 4.
Nxd4 {[%clk 0:04:55.4]} 4... Nc6 {[%clk 0:04:55.6]} 5. Nc3 {[%clk 0:04:54.2]}
5... Bg7 {[%clk 0:04:54.5]} 6. Be3 {[%clk 0:04:52.6]} 6... Nf6 {[%clk
0:04:52.3]} 7. f3 {[%clk 0:04:50.4]} 7... O-O {[%clk 0:04:51.1]} 8. Qd2 {[%clk
0:04:48]} 8... d5 {[%clk 0:04:49.5]} 9. exd5 {[%clk 0:04:37.7]} 9... Nxd5 {[%clk
0:04:44.6]} 10. Nxc6 {[%clk 0:04:27.8]} 10... Bxc3 {[%clk 0:04:32.4]} 11. Nxd8
{[%clk 0:04:13.9]} 11... Bxd2+ {[%clk 0:04:30.7]} 12. Bxd2 {[%clk 0:04:11.2]}
12... Rxd8 {[%clk 0:04:29.5]} 13. Bc4 {[%clk 0:04:06.1]} 13... Bf5 {[%clk
0:04:26.8]} 14. Bb3 {[%clk 0:03:57.8]} 14... Rac8 {[%clk 0:04:21.1]} 15. c3
{[%clk 0:03:49.9]} 15... Bd3 {[%clk 0:04:16.5]} 16. O-O-O {[%clk 0:03:37]} 16...
b5 {[%clk 0:04:12.6]} 17. Bg5 {[%clk 0:03:34.3]} 17... Bc4 {[%clk 0:04:01.1]}
18. Bxc4 {[%clk 0:03:30.5]} 18... bxc4 {[%clk 0:03:54.7]} 19. Rhe1 {[%clk
0:03:27.7]} 19... f6 {[%clk 0:03:50.1]} 20. Be3 {[%clk 0:03:21.9]} 20... Nxe3
{[%clk 0:03:45.9]} 21. Rxe3 {[%clk 0:03:20.3]} 21... Rxd1+ {[%clk 0:03:44.2]}
22. Kxd1 {[%clk 0:03:19.3]} 22... Rd8+ {[%clk 0:03:42.6]} 23. Kc2 {[%clk
0:03:17.2]} 23... e5 {[%clk 0:03:39.7]} 24. Re4 {[%clk 0:03:15.9]} 24... Kf7
{[%clk 0:03:38.4]} 25. Rxc4 {[%clk 0:03:13.9]} 25... Ke6 {[%clk 0:03:35.7]} 26.
Rc7 {[%clk 0:03:12.4]} 26... Rd7 {[%clk 0:03:27.2]} 27. Rxd7 {[%clk 0:03:09.2]}
27... Kxd7 {[%clk 0:03:27.1]} 28. Kd3 {[%clk 0:03:07.9]} 28... Kc6 {[%clk
0:03:27]} 29. Ke4 {[%clk 0:03:04.4]} 29... Kd6 {[%clk 0:03:25]} 30. b3 {[%clk
0:02:57.8]} 30... f5+ {[%clk 0:03:23.4]} 31. Kd3 {[%clk 0:02:55.9]} 31... Kd5
{[%clk 0:03:23.3]} 32. a3 {[%clk 0:02:54.1]} 32... g5 {[%clk 0:03:18.9]} 33. c4+
{[%clk 0:02:46.9]} 33... Kc5 {[%clk 0:03:17.8]} 34. b4+ {[%clk 0:02:43.9]} 34...
Kc6 {[%clk 0:03:16.3]} 35. g3 {[%clk 0:02:37.7]} 35... h5 {[%clk 0:03:14.9]} 36.
h3 {[%clk 0:02:35.1]} 36... h4 {[%clk 0:02:52.4]} 37. g4 {[%clk 0:02:24.1]}
37... e4+ {[%clk 0:02:48.2]} 38. Ke3 {[%clk 0:02:15]} 38... exf3 {[%clk
0:02:42.1]} 39. gxf5 {[%clk 0:01:59.6]} 39... g4 {[%clk 0:02:40.2]} 40. hxg4
{[%clk 0:01:52.6]} 40... h3 {[%clk 0:02:36.9]} 41. Kxf3 {[%clk 0:01:50.8]} 41...
h2 {[%clk 0:02:35]} 42. Kg2 {[%clk 0:01:49.3]} 1-0

[Event "Live Chess"]
[Site "Chess.com"]
[Date "2023.05.21"]
[Round "-"]
[White "NaCl1251"]
[Black "febray_27"]
[Result "0-1"]
[WhiteElo "585"]
[BlackElo "2006"]
[TimeControl "300"]
[EndTime "5:49:23 PDT"]
[Termination "febray_27 won by checkmate"]

1. e4 {[%clk 0:04:58.4]} 1... c5 {[%clk 0:04:57.8]} 2. Nc3 {[%clk 0:04:55.3]}
2... d6 {[%clk 0:04:53.6]} 3. Nf3 {[%clk 0:04:51]} 3... Nc6 {[%clk 0:04:49]} 4.
d4 {[%clk 0:04:44.6]} 4... cxd4 {[%clk 0:04:47.5]} 5. Nxd4 {[%clk 0:04:42.9]}
5... Nf6 {[%clk 0:04:44.3]} 6. Nxc6 {[%clk 0:04:35.3]} 6... bxc6 {[%clk
0:04:43]} 7. Bc4 {[%clk 0:04:31.3]} 7... g6 {[%clk 0:04:39.4]} 8. Qf3 {[%clk
0:04:24.7]} 8... Bg7 {[%clk 0:04:37.8]} 9. Bg5 {[%clk 0:04:20.6]} 9... O-O
{[%clk 0:04:35.8]} 10. Bxf6 {[%clk 0:04:17.5]} 10... Bxf6 {[%clk 0:04:33.9]} 11.
O-O-O {[%clk 0:04:05.8]} 11... Rb8 {[%clk 0:04:25.7]} 12. b3 {[%clk 0:04:02.2]}
12... Qa5 {[%clk 0:04:23.2]} 13. Kb2 {[%clk 0:03:44]} 13... h5 {[%clk
0:04:09.9]} 14. g3 {[%clk 0:03:35.1]} 14... Bg4 {[%clk 0:04:08.1]} 15. Qf4
{[%clk 0:03:23]} 15... Qxc3+ {[%clk 0:04:04.2]} 16. Kb1 {[%clk 0:03:17.3]} 16...
Qb2# {[%clk 0:04:02.5]} 0-1

[Event "Live Chess"]
[Site "Chess.com"]
[Date "2023.05.21"]
[Round "-"]
[White "MovebyMove"]
[Black "ms_lilley"]
[Result "1-0"]
[WhiteElo "2476"]
[BlackElo "597"]
[TimeControl "300"]
[EndTime "5:49:24 PDT"]
[Termination "MovebyMove won by checkmate"]

1. Nf3 {[%clk 0:04:56.7]} 1... e6 {[%clk 0:04:58.4]} 2. e4 {[%clk 0:04:55.3]}
2... d5 {[%clk 0:04:56.7]} 3. exd5 {[%clk 0:04:51.2]} 3... exd5 {[%clk
0:04:54.8]} 4. d4 {[%clk 0:04:50.3]} 4... Ne7 {[%clk 0:04:51.3]} 5. Bd3 {[%clk
0:04:49]} 5... h6 {[%clk 0:04:45.7]} 6. O-O {[%clk 0:04:47.8]} 6... Ng6 {[%clk
0:04:42.2]} 7. c4 {[%clk 0:04:46.4]} 7... Be6 {[%clk 0:04:37.4]} 8. cxd5 {[%clk
0:04:44.3]} 8... Bxd5 {[%clk 0:04:36.1]} 9. Nc3 {[%clk 0:04:43.4]} 9... c6
{[%clk 0:04:33.5]} 10. Re1+ {[%clk 0:04:36.8]} 10... Be7 {[%clk 0:04:31.9]} 11.
Qe2 {[%clk 0:04:32.3]} 11... O-O {[%clk 0:04:25.8]} 12. Nxd5 {[%clk 0:04:27]}
12... cxd5 {[%clk 0:04:24.2]} 13. Bxg6 {[%clk 0:04:25.9]} 13... fxg6 {[%clk
0:04:18.8]} 14. Qxe7 {[%clk 0:04:23.9]} 14... Qxe7 {[%clk 0:04:16.6]} 15. Rxe7
{[%clk 0:04:22.7]} 15... Nc6 {[%clk 0:04:11]} 16. Rxb7 {[%clk 0:04:20.4]} 16...
Nxd4 {[%clk 0:04:07.5]} 17. Nxd4 {[%clk 0:04:18.8]} 17... Rf7 {[%clk 0:04:03.8]}
18. Rxf7 {[%clk 0:04:16.9]} 18... Kxf7 {[%clk 0:04:01.1]} 19. Be3 {[%clk
0:04:15.9]} 19... Kg8 {[%clk 0:03:56.1]} 20. Rc1 {[%clk 0:04:14.2]} 20... a5
{[%clk 0:03:53.5]} 21. h4 {[%clk 0:04:13]} 21... h5 {[%clk 0:03:50.4]} 22. Rc7
{[%clk 0:04:11.6]} 22... Kh7 {[%clk 0:03:48.1]} 23. Ne6 {[%clk 0:04:10.5]} 23...
Rg8 {[%clk 0:03:42.5]} 24. Bd4 {[%clk 0:04:09.3]} 24... Kh6 {[%clk 0:03:38.1]}
25. Bxg7+ {[%clk 0:04:05.9]} 25... Kh7 {[%clk 0:03:30.6]} 26. Bf6+ {[%clk
0:04:00]} 26... Kh6 {[%clk 0:03:29.1]} 27. Bg5# {[%clk 0:03:59]} 1-0

[Event "Live Chess"]
[Site "Chess.com"]
[Date "2023.05.21"]
[Round "-"]
[White "CheckThis4"]
[Black "Anirudh_23"]
[Result "1-0"]
[WhiteElo "2515"]
[BlackElo "1890"]
[TimeControl "300"]
[EndTime "5:49:35 PDT"]
[Termination "CheckThis4 won by checkmate"]

1. d4 {[%clk 0:04:57.9]} 1... Nf6 {[%clk 0:04:58.3]} 2. Nc3 {[%clk 0:04:57.1]}
2... d5 {[%clk 0:04:53.2]} 3. e4 {[%clk 0:04:56.2]} 3... Nxe4 {[%clk 0:04:28.1]}
4. Nxe4 {[%clk 0:04:53.6]} 4... dxe4 {[%clk 0:04:28]} 5. Bc4 {[%clk 0:04:52.6]}
5... Bf5 {[%clk 0:04:23.4]} 6. g4 {[%clk 0:04:51]} 6... Bg6 {[%clk 0:04:21.6]}
7. Ne2 {[%clk 0:04:50.1]} 7... Nc6 {[%clk 0:04:11.2]} 8. c3 {[%clk 0:04:41.1]}
8... e5 {[%clk 0:04:06.3]} 9. h4 {[%clk 0:04:34.6]} 9... h5 {[%clk 0:03:50]} 10.
Qb3 {[%clk 0:04:25.1]} 10... Na5 {[%clk 0:03:27.1]} 11. Qa4+ {[%clk 0:04:21.3]}
11... c6 {[%clk 0:03:25.9]} 12. dxe5 {[%clk 0:04:05.9]} 12... b5 {[%clk
0:03:06.8]} 13. Bxb5 {[%clk 0:04:04.3]} 13... cxb5 {[%clk 0:02:58.3]} 14. Qxb5+
{[%clk 0:04:04.2]} 14... Ke7 {[%clk 0:02:56.9]} 15. Bg5+ {[%clk 0:03:49.8]}
15... f6 {[%clk 0:02:55.6]} 16. Rd1 {[%clk 0:03:35.2]} 16... Qc7 {[%clk
0:02:28.7]} 17. Nf4 {[%clk 0:03:25.9]} 17... Bf7 {[%clk 0:01:49.7]} 18. exf6+
{[%clk 0:03:22.9]} 18... gxf6 {[%clk 0:01:47.2]} 19. Bxf6+ {[%clk 0:03:21.8]}
19... Kxf6 {[%clk 0:01:35.9]} 20. Qg5# {[%clk 0:03:18.9]} 1-0

[Event "Live Chess"]
[Site "Chess.com"]
[Date "2023.05.21"]
[Round "-"]
[White "Tushinskiy"]
[Black "ameetghasi100"]
[Result "0-1"]
[WhiteElo "2219"]
[BlackElo "2606"]
[TimeControl "300"]
[EndTime "5:49:53 PDT"]
[Termination "ameetghasi100 won by resignation"]

1. d4 {[%clk 0:04:44.4]} 1... e6 {[%clk 0:04:59.9]} 2. c3 {[%clk 0:04:44]} 2...
Nf6 {[%clk 0:04:59]} 3. Nf3 {[%clk 0:04:43.3]} 3... g6 {[%clk 0:04:58.9]} 4. Bg5
{[%clk 0:04:41.4]} 4... Bg7 {[%clk 0:04:58.3]} 5. Nbd2 {[%clk 0:04:39.5]} 5...
h6 {[%clk 0:04:56.6]} 6. Bh4 {[%clk 0:04:38.5]} 6... d6 {[%clk 0:04:55.4]} 7. e4
{[%clk 0:04:37.7]} 7... g5 {[%clk 0:04:50.8]} 8. Bg3 {[%clk 0:04:35.7]} 8... Nh5
{[%clk 0:04:49.7]} 9. Bd3 {[%clk 0:04:34.4]} 9... O-O {[%clk 0:04:48.4]} 10. Qe2
{[%clk 0:04:32]} 10... f5 {[%clk 0:04:46.8]} 11. h3 {[%clk 0:04:28.7]} 11... Nc6
{[%clk 0:04:43.5]} 12. O-O-O {[%clk 0:04:26.6]} 12... a5 {[%clk 0:04:40.2]} 13.
Bh2 {[%clk 0:04:25.2]} 13... a4 {[%clk 0:04:38]} 14. a3 {[%clk 0:04:23.8]} 14...
Bd7 {[%clk 0:04:36.4]} 15. g4 {[%clk 0:04:11.8]} 15... fxg4 {[%clk 0:04:35.1]}
16. hxg4 {[%clk 0:04:11.7]} 16... Nf4 {[%clk 0:04:34.8]} 17. Bxf4 {[%clk
0:04:10.9]} 17... Rxf4 {[%clk 0:04:34.5]} 18. e5 {[%clk 0:04:08.1]} 18... d5
{[%clk 0:04:33.5]} 19. Rh3 {[%clk 0:04:00.9]} 19... Qf8 {[%clk 0:04:31.6]} 20.
Rdh1 {[%clk 0:03:59.5]} 20... Ne7 {[%clk 0:04:18.8]} 21. Bc2 {[%clk 0:03:56.8]}
21... Be8 {[%clk 0:04:15.2]} 22. R1h2 {[%clk 0:03:45.8]} 22... b6 {[%clk
0:04:12.5]} 23. Ne1 {[%clk 0:03:40]} 23... c5 {[%clk 0:04:09.6]} 24. f3 {[%clk
0:03:35.8]} 24... cxd4 {[%clk 0:04:09.5]} 25. Ng2 {[%clk 0:03:35]} 25... dxc3
{[%clk 0:04:08.1]} 26. bxc3 {[%clk 0:03:33.6]} 26... Rc8 {[%clk 0:03:54.2]} 27.
Nxf4 {[%clk 0:03:29.3]} 27... Qxf4 {[%clk 0:03:54.1]} 28. Rxh6 {[%clk
0:03:13.8]} 28... Rxc3 {[%clk 0:03:51.4]} 29. Rxe6 {[%clk 0:03:03.4]} 29... Kf8
{[%clk 0:03:31.5]} 30. Rf6+ {[%clk 0:02:58.8]} 30... Bxf6 {[%clk 0:03:29.1]} 31.
exf6 {[%clk 0:02:58.7]} 31... Qxf6 {[%clk 0:03:27.8]} 32. Kd1 {[%clk 0:02:40.6]}
32... Nc6 {[%clk 0:03:18.9]} 33. f4 {[%clk 0:02:31.9]} 33... Rxc2 {[%clk
0:03:06.4]} 34. Qd3 {[%clk 0:02:00.6]} 34... Rc3 {[%clk 0:03:01.1]} 35. Qxd5
{[%clk 0:01:58.9]} 35... Ne7 {[%clk 0:02:51.8]} 36. Qd8 {[%clk 0:01:51.2]} 36...
Rxa3 {[%clk 0:02:45.1]} 37. fxg5 {[%clk 0:01:46.6]} 37... Ra1+ {[%clk
0:02:37.3]} 38. Kc2 {[%clk 0:01:38]} 38... Qc6+ {[%clk 0:02:35.6]} 39. Kd3
{[%clk 0:01:33.6]} 39... Qd5+ {[%clk 0:02:26.2]} 40. Qxd5 {[%clk 0:01:30.8]}
40... Nxd5 {[%clk 0:02:26.1]} 41. Kd4 {[%clk 0:01:27.3]} 41... Ne7 {[%clk
0:02:19.1]} 42. Ne4 {[%clk 0:01:26.1]} 42... Bg6 {[%clk 0:02:11.2]} 43. Rf2+
{[%clk 0:01:20.9]} 43... Kg7 {[%clk 0:02:09.7]} 44. Nd6 {[%clk 0:01:17.7]} 44...
Rd1+ {[%clk 0:02:08.4]} 45. Ke5 {[%clk 0:01:13.7]} 45... a3 {[%clk 0:02:05]} 46.
Nf5+ {[%clk 0:01:05.7]} 46... Bxf5 {[%clk 0:02:03]} 47. gxf5 {[%clk 0:01:05.6]}
47... Rd5+ {[%clk 0:02:00.5]} 48. Ke6 {[%clk 0:01:04.5]} 48... Rxf5 {[%clk
0:01:58.6]} 49. Ra2 {[%clk 0:01:00.7]} 49... Ra5 {[%clk 0:01:55.3]} 50. Kxe7
{[%clk 0:00:56.5]} 50... b5 {[%clk 0:01:54.6]} 0-1

[Event "Live Chess"]
[Site "Chess.com"]
[Date "2023.05.21"]
[Round "-"]
[White "Ayursworld"]
[Black "Hacker_2009"]
[Result "0-1"]
[WhiteElo "1367"]
[BlackElo "1943"]
[TimeControl "300"]
[EndTime "5:50:09 PDT"]
[Termination "Hacker_2009 won by checkmate"]

1. e4 {[%clk 0:04:58.3]} 1... c5 {[%clk 0:04:58.1]} 2. Nc3 {[%clk 0:04:55.7]}
2... d6 {[%clk 0:04:57.2]} 3. Nf3 {[%clk 0:04:54.4]} 3... Nf6 {[%clk 0:04:55.7]}
4. d4 {[%clk 0:04:52.9]} 4... cxd4 {[%clk 0:04:54.1]} 5. Qxd4 {[%clk 0:04:50]}
5... Nc6 {[%clk 0:04:52.8]} 6. Bb5 {[%clk 0:04:48.5]} 6... Bd7 {[%clk 0:04:51]}
7. Bxc6 {[%clk 0:04:47.2]} 7... Bxc6 {[%clk 0:04:50.9]} 8. Bg5 {[%clk
0:04:45.1]} 8... e5 {[%clk 0:04:45.7]} 9. Qd2 {[%clk 0:04:37.3]} 9... Be7 {[%clk
0:04:43.9]} 10. Bxf6 {[%clk 0:04:35.7]} 10... Bxf6 {[%clk 0:04:42.5]} 11. O-O
{[%clk 0:04:34.3]} 11... O-O {[%clk 0:04:41.2]} 12. Nd5 {[%clk 0:04:32]} 12...
Bxd5 {[%clk 0:04:27.9]} 13. Qxd5 {[%clk 0:04:29]} 13... Qc7 {[%clk 0:04:25.8]}
14. Rac1 {[%clk 0:04:25.6]} 14... Rfd8 {[%clk 0:04:23.2]} 15. c4 {[%clk
0:04:23.1]} 15... Rac8 {[%clk 0:04:17.3]} 16. b3 {[%clk 0:04:20.3]} 16... Qc5
{[%clk 0:04:15.2]} 17. Qxb7 {[%clk 0:04:01.1]} 17... Rc7 {[%clk 0:04:09]} 18.
Qd5 {[%clk 0:03:58.7]} 18... Qxd5 {[%clk 0:04:07.2]} 19. cxd5 {[%clk 0:03:53.4]}
19... Rdc8 {[%clk 0:04:04.5]} 20. Rxc7 {[%clk 0:03:46.8]} 20... Rxc7 {[%clk
0:04:03.2]} 21. h3 {[%clk 0:03:43]} 21... h6 {[%clk 0:04:01]} 22. Kh2 {[%clk
0:03:29]} 22... Rc2 {[%clk 0:03:58.1]} 23. a4 {[%clk 0:03:24.6]} 23... Rb2
{[%clk 0:03:55.5]} 24. Rc1 {[%clk 0:03:16.4]} 24... Rxb3 {[%clk 0:03:48.5]} 25.
Rc8+ {[%clk 0:03:14.8]} 25... Kh7 {[%clk 0:03:46]} 26. Rc7 {[%clk 0:03:12.2]}
26... a5 {[%clk 0:03:41.2]} 27. Ra7 {[%clk 0:03:09.5]} 27... Rb4 {[%clk
0:03:38.7]} 28. Rxa5 {[%clk 0:03:04.3]} 28... Rxe4 {[%clk 0:03:37.5]} 29. Ra6
{[%clk 0:03:02.7]} 29... Re2 {[%clk 0:03:32.1]} 30. Rxd6 {[%clk 0:02:56.8]}
30... e4 {[%clk 0:03:30.2]} 31. Ng1 {[%clk 0:02:52.5]} 31... Be5+ {[%clk
0:03:24]} 32. g3 {[%clk 0:02:51]} 32... Rxf2+ {[%clk 0:03:21.1]} 33. Kh1 {[%clk
0:02:50]} 33... Bxd6 {[%clk 0:03:19.7]} 34. a5 {[%clk 0:02:48.3]} 34... Bxg3
{[%clk 0:03:18.3]} 35. a6 {[%clk 0:02:47.2]} 35... Rh2# {[%clk 0:03:16.9]} 0-1

[Event "Live Chess"]
[Site "Chess.com"]
[Date "2023.05.21"]
[Round "-"]
[White "f4nomore"]
[Black "Tiltador"]
[Result "0-1"]
[WhiteElo "1387"]
[BlackElo "846"]
[TimeControl "300"]
[EndTime "5:50:12 PDT"]
[Termination "Tiltador won on time"]

1. d4 {[%clk 0:04:57.8]} 1... d5 {[%clk 0:04:54.5]} 2. Bg5 {[%clk 0:04:53.6]}
2... f6 {[%clk 0:04:52.4]} 3. Bh4 {[%clk 0:04:52]} 3... c6 {[%clk 0:04:45]} 4.
Nf3 {[%clk 0:04:49.3]} 4... e6 {[%clk 0:04:43.8]} 5. e3 {[%clk 0:04:47.6]} 5...
Bb4+ {[%clk 0:04:40.7]} 6. c3 {[%clk 0:04:45.4]} 6... Be7 {[%clk 0:04:39.1]} 7.
Be2 {[%clk 0:04:43.3]} 7... Nh6 {[%clk 0:04:37.8]} 8. O-O {[%clk 0:04:40.3]}
8... Nf5 {[%clk 0:04:36.6]} 9. Nbd2 {[%clk 0:04:29.7]} 9... Nxh4 {[%clk
0:04:34.4]} 10. Nxh4 {[%clk 0:04:27.7]} 10... O-O {[%clk 0:04:33.2]} 11. Nb3
{[%clk 0:04:12]} 11... f5 {[%clk 0:04:31.9]} 12. Nf3 {[%clk 0:04:10.8]} 12... b5
{[%clk 0:04:26.4]} 13. Ne5 {[%clk 0:04:08.4]} 13... Bb7 {[%clk 0:04:23.5]} 14.
f4 {[%clk 0:04:03.9]} 14... Nd7 {[%clk 0:04:18.3]} 15. a3 {[%clk 0:03:57.9]}
15... Nxe5 {[%clk 0:04:17]} 16. dxe5 {[%clk 0:03:56.1]} 16... Qb6 {[%clk
0:04:12.5]} 17. Qd2 {[%clk 0:03:51.2]} 17... c5 {[%clk 0:04:03.8]} 18. Nc1
{[%clk 0:03:41.7]} 18... c4 {[%clk 0:04:02.4]} 19. b3 {[%clk 0:03:21.2]} 19...
Bc5 {[%clk 0:03:33.8]} 20. Rf3 {[%clk 0:03:16.9]} 20... d4 {[%clk 0:03:23.9]}
21. cxd4 {[%clk 0:03:12.8]} 21... Bxf3 {[%clk 0:03:21.6]} 22. Bxf3 {[%clk
0:03:11.4]} 22... Rad8 {[%clk 0:03:09.9]} 23. dxc5 {[%clk 0:02:59.2]} 23... Rxd2
{[%clk 0:03:04.8]} 24. cxb6 {[%clk 0:02:57.5]} 24... axb6 {[%clk 0:03:03.6]} 25.
Na2 {[%clk 0:02:50.6]} 25... Rd3 {[%clk 0:02:58.7]} 26. bxc4 {[%clk 0:02:47.5]}
26... bxc4 {[%clk 0:02:54.2]} 27. Nb4 {[%clk 0:02:46.2]} 27... Rxe3 {[%clk
0:02:50.6]} 28. h3 {[%clk 0:02:42.2]} 28... c3 {[%clk 0:02:48.4]} 29. Rc1 {[%clk
0:02:40.3]} 29... Rc8 {[%clk 0:02:42.2]} 30. Nc6 {[%clk 0:02:32.8]} 30... Kh8
{[%clk 0:02:30.4]} 31. a4 {[%clk 0:02:22.7]} 31... g6 {[%clk 0:02:27.5]} 32. a5
{[%clk 0:02:15.6]} 32... bxa5 {[%clk 0:02:24]} 33. Nxa5 {[%clk 0:02:13.5]} 33...
Rb8 {[%clk 0:02:16.7]} 34. Nc6 {[%clk 0:02:10.4]} 34... Rb2 {[%clk 0:02:10.6]}
35. Nd4 {[%clk 0:02:00.1]} 35... Rd3 {[%clk 0:02:00.3]} 36. Nxe6 {[%clk
0:01:57.5]} 36... c2 {[%clk 0:01:50.4]} 37. Nc5 {[%clk 0:01:33.7]} 37... Rc3
{[%clk 0:01:48.5]} 38. Na4 {[%clk 0:01:28]} 38... Rb1 {[%clk 0:01:46.7]} 39.
Nxc3 {[%clk 0:01:10.3]} 39... Rxc1+ {[%clk 0:01:44]} 40. Kh2 {[%clk 0:01:01]}
40... Re1 {[%clk 0:01:38.8]} 41. Na2 {[%clk 0:00:49.6]} 41... c1=Q {[%clk
0:01:36.1]} 42. Nxc1 {[%clk 0:00:48.1]} 42... Rxc1 {[%clk 0:01:34.9]} 43. Kg3
{[%clk 0:00:44.5]} 43... Rc7 {[%clk 0:01:30.9]} 44. Bd5 {[%clk 0:00:38.7]} 44...
Re7 {[%clk 0:01:28.4]} 45. Kh4 {[%clk 0:00:35.1]} 45... h6 {[%clk 0:01:27.1]}
46. g4 {[%clk 0:00:33]} 46... fxg4 {[%clk 0:01:22.7]} 47. hxg4 {[%clk
0:00:30.4]} 47... Kg7 {[%clk 0:01:21.6]} 48. e6 {[%clk 0:00:24.1]} 48... Kf6
{[%clk 0:01:15.4]} 49. g5+ {[%clk 0:00:22.8]} 49... hxg5+ {[%clk 0:01:11.7]} 50.
fxg5+ {[%clk 0:00:20.5]} 50... Kf5 {[%clk 0:01:10.5]} 51. Bb3 {[%clk 0:00:16.8]}
51... Kf4 {[%clk 0:01:01.1]} 52. Ba2 {[%clk 0:00:10.7]} 52... Kf5 {[%clk
0:00:58.8]} 53. Bb1+ {[%clk 0:00:06.4]} 53... Kxe6 {[%clk 0:00:52.5]} 54. Bxg6
{[%clk 0:00:03.9]} 54... Rg7 {[%clk 0:00:50.9]} 0-1

[Event "Live Chess"]
[Site "Chess.com"]
[Date "2023.05.21"]
[Round "-"]
[White "gmnorfolk"]
[Black "SavagePawn7"]
[Result "1-0"]
[WhiteElo "2141"]
[BlackElo "770"]
[TimeControl "300"]
[EndTime "5:50:18 PDT"]
[Termination "gmnorfolk won by resignation"]

1. d4 {[%clk 0:04:58.6]} 1... e5 {[%clk 0:04:49.8]} 2. dxe5 {[%clk 0:04:57.2]}
2... d6 {[%clk 0:04:48.7]} 3. Nf3 {[%clk 0:04:55.3]} 3... Nc6 {[%clk 0:04:46.4]}
4. e4 {[%clk 0:04:54.3]} 4... dxe5 {[%clk 0:04:32.9]} 5. Qxd8+ {[%clk
0:04:52.6]} 5... Nxd8 {[%clk 0:04:31.5]} 6. Nxe5 {[%clk 0:04:50.5]} 6... Nc6
{[%clk 0:04:23.2]} 7. Bb5 {[%clk 0:04:47.8]} 7... Bd7 {[%clk 0:04:20]} 8. Nxd7
{[%clk 0:04:46.5]} 8... Kxd7 {[%clk 0:04:18.9]} 9. Nc3 {[%clk 0:04:45.5]} 9...
a6 {[%clk 0:04:16.6]} 10. Bc4 {[%clk 0:04:43.3]} 10... Re8 {[%clk 0:04:12.2]}
11. Bxf7 {[%clk 0:04:40.2]} 11... Re7 {[%clk 0:04:05.6]} 12. Bxg8 {[%clk
0:04:37.4]} 12... Rxg8 {[%clk 0:04:04]} 13. Bg5 {[%clk 0:04:36.8]} 13... Re5
{[%clk 0:03:56.4]} 14. O-O-O+ {[%clk 0:04:35.1]} 14... Kc8 {[%clk 0:03:53.7]}
15. Be3 {[%clk 0:04:32.4]} 15... Nb4 {[%clk 0:03:37.9]} 16. f3 {[%clk
0:04:27.4]} 16... Bd6 {[%clk 0:03:31.3]} 17. Bf4 {[%clk 0:04:21.5]} 17... Re6
{[%clk 0:03:24.3]} 18. Bxd6 {[%clk 0:04:20.3]} 18... Rxd6 {[%clk 0:03:21.3]} 19.
Rxd6 {[%clk 0:04:19.1]} 19... cxd6 {[%clk 0:03:18.6]} 20. Rd1 {[%clk 0:04:18.7]}
20... Kc7 {[%clk 0:03:16.4]} 21. Nd5+ {[%clk 0:04:16.9]} 21... Kc6 {[%clk
0:03:14.7]} 22. Nxb4+ {[%clk 0:04:15.8]} 1-0